fUST/lending_fUST_20260117
["ID","MTS","AMOUNT","RATE_DAILY","PERIOD"]
[402290138,1768649467178,-500.0,0.00016986,3]
[402290139,1768649467187,-500.0,0.00016986,3]
[402290140,1768649467196,-500.0,0.00016986,3]
[402290141,1768649467206,-500.0,0.00016986,3]
[402290142,1768649467215,-500.0,0.00016986,3]
[402290143,1768649467224,-563.8,0.00016986,3]
[402290144,1768649467234,-811.88,0.00016986,3]
[402290145,1768649467243,-2590.78,0.00016986,3]
[402290146,1768649467253,-500.0,0.00016986,3]
[402290147,1768649467262,-2047.3,0.00016986,3]
[402290148,1768649467274,-1579.55,0.00016986,3]
[402290149,1768649467283,-500.0,0.00016986,3]
[402290150,1768649467292,-500.0,0.00016986,3]
[402290151,1768649467302,-500.0,0.00016986,3]
[402290152,1768649467311,-500.0,0.00016986,3]
[402290153,1768649467320,-500.0,0.00016986,3]
[402290154,1768649467330,-500.0,0.00016986,3]
[402290155,1768649467340,-500.0,0.00016986,3]
[402290156,1768649467350,-1222.94,0.00016986,3]
[402290157,1768649467359,-500.0,0.00016986,3]
[402290158,1768649467368,-500.0,0.00016986,3]
[402290159,1768649467378,-500.0,0.00016986,3]
[402290160,1768649467388,-758.74,0.00016986,3]
[402290161,1768649467397,-500.0,0.00016986,3]
[402290162,1768649467406,-500.0,0.00016986,3]
[402290163,1768649467415,-500.0,0.00016986,3]
[402290164,1768649467425,-560.2982487,0.00016986,3]
[402290165,1768649467434,-500.0,0.00016986,3]
[402290166,1768649467444,-1366.17,0.00016986,3]
[402290167,1768649467454,-500.0,0.00016986,3]
[402290168,1768649467463,-500.0,0.00016986,3]
[402290169,1768649467472,-694.6,0.00016986,3]
[402290170,1768649467481,-817.66,0.00016986,3]
[402290171,1768649467490,-500.0,0.00016986,3]
[402290172,1768649467499,-1832.06,0.00016986,3]
[402290173,1768649467508,-593.12,0.00016986,3]
[402290174,1768649467517,-535.22,0.00016986,3]
[402290175,1768649467526,-526.65404558,0.00016986,3]
[402290176,1768649467535,-592.02,0.00016986,3]
[402290177,1768649467544,-1387.56,0.00016986,3]
[402290178,1768649467553,-694.92,0.00016986,3]
[402290179,1768649467562,-3630.43,0.00016986,3]
[402290180,1768649467571,-577.36,0.00016986,3]
[402290181,1768649467580,-500.0,0.00016986,3]
[402290182,1768649467589,-1054.42,0.00016986,3]
[402290183,1768649467598,-500.0,0.00016986,3]
[402290184,1768649467607,-500.0,0.00016986,3]
[402290185,1768649467617,-500.0,0.00016986,3]
[402290186,1768649467626,-500.0,0.00016986,3]
[402290187,1768649467635,-500.0,0.00016986,3]
[402290188,1768649467649,-1391.15,0.00016986,3]
[402290189,1768649467658,-1048.64,0.00016986,3]
[402290190,1768649467667,-1108.81,0.00016986,3]
[402290191,1768649467677,-626.22,0.00016986,3]
[402290192,1768649467686,-500.0,0.00016986,3]
[402290193,1768649467695,-606.76,0.00016986,3]
[402290194,1768649467704,-500.0,0.00016986,3]
[402290195,1768649467713,-799.6,0.00016986,3]
[402290196,1768649467722,-257.29403538,0.00016986,3]
[402290197,1768649467732,-1462.53,0.00016986,3]
[402290198,1768649467741,-929.98,0.00016986,3]
[402290199,1768649467751,-1638.57,0.00016986,3]
[402290200,1768649467761,-500.0,0.00016986,3]
[402290201,1768649467774,-500.0,0.00016986,3]
[402290202,1768649467783,-671.14,0.00016986,3]
[402290203,1768649467792,-500.0,0.00016986,3]
[402290204,1768649467802,-1056.64,0.00016986,3]
[402290205,1768649467811,-500.0,0.00016986,3]
[402290206,1768649467820,-154.03719813,0.00016986,3]
[402290207,1768649467829,-980.65,0.00016986,3]
[402290208,1768649467839,-500.0,0.00016986,3]
[402290209,1768649467849,-500.0,0.00016986,3]
[402290210,1768649467862,-1813.35,0.00016986,3]
[402290211,1768649467871,-500.0,0.00016986,3]
[402290212,1768649467881,-1240.51,0.00016986,3]
[402290213,1768649467890,-1353.35,0.00016986,3]
[402290214,1768649467900,-500.0,0.00016986,3]
[402290215,1768649467909,-500.0,0.00016986,3]
[402290216,1768649467919,-500.0,0.00016986,3]
[402290217,1768649467928,-1645.77,0.00016986,3]
[402290218,1768649467937,-892.73,0.00016986,3]
[402290219,1768649467947,-2044.1,0.00016986,3]
[402290220,1768649467957,-500.0,0.00016986,3]
[402290221,1768649467966,-692.82,0.00016986,3]
[402290222,1768649467975,-500.0,0.00016986,3]
[402290223,1768649467984,-500.0,0.00016986,3]
[402290224,1768649467994,-699.9,0.00016986,3]
[402290225,1768649468003,-500.0,0.00016986,3]
[402290226,1768649468012,-500.0,0.00016986,3]
[402290227,1768649468021,-568.79,0.00016986,3]
[402290228,1768649468029,-700.19,0.00016986,3]
[402290229,1768649468039,-500.0,0.00016986,3]
[402290230,1768649468048,-500.0,0.00016986,3]
[402290231,1768649468059,-939.73,0.00016986,3]
[402290232,1768649468069,-500.0,0.00016986,3]
[402290233,1768649468079,-1081.34,0.00016986,3]
[402290234,1768649468088,-500.0,0.00016986,3]
[402290235,1768649468097,-500.0,0.00016986,3]
[402290236,1768649468108,-500.0,0.00016986,3]
[402290237,1768649468117,-1177.76,0.00016986,3]
[402290238,1768649468127,-500.0,0.00016986,3]
[402290239,1768649468136,-611.38,0.00016986,3]
[402290240,1768649468145,-500.0,0.00016986,3]
[402290241,1768649468155,-500.0,0.00016986,3]
[402290242,1768649468165,-500.0,0.00016986,3]
[402290243,1768649468175,-913.11,0.00016986,3]
[402290244,1768649468185,-500.0,0.00016986,3]
[402290245,1768649468195,-500.0,0.00016986,3]
[402290246,1768649468204,-1044.14,0.00016986,3]
[402290247,1768649468214,-500.0,0.00016986,3]
[402290248,1768649468223,-500.0,0.00016986,3]
[402290249,1768649468233,-500.0,0.00016986,3]
[402290250,1768649468243,-1326.69,0.00016986,3]
[402290251,1768649468253,-472.41430431,0.00016986,3]
[402290252,1768649468263,-500.0,0.00016986,3]
[402290253,1768649468273,-500.0,0.00016986,3]
[402290254,1768649468282,-1255.88,0.00016986,3]
[402290255,1768649468292,-500.0,0.00016986,3]
[402290256,1768649468302,-500.0,0.00016986,3]
[402290257,1768649468312,-500.0,0.00016986,3]
[402290258,1768649468322,-500.0,0.00016986,3]
[402290259,1768649468331,-2815.19,0.00016986,3]
[402290260,1768649468341,-501.51,0.00016986,3]
[402290261,1768649468351,-1106.71,0.00016986,3]
[402290262,1768649468360,-577.06010891,0.00016986,3]
[402290263,1768649468369,-500.0,0.00016986,3]
[402290264,1768649468379,-1559.59,0.00016986,3]
[402290265,1768649468389,-567.25,0.00016986,3]
[402290266,1768649468399,-1098.82,0.00016986,3]
[402290267,1768649468408,-503.22,0.00016986,3]
[402290268,1768649468420,-863.18,0.00016986,3]
[402290269,1768649468430,-1622.28,0.00016986,3]
[402290270,1768649468439,-500.0,0.00016986,3]
[402290271,1768649468449,-500.0,0.00016986,3]
[402290272,1768649468458,-500.0,0.00016986,3]
[402290273,1768649468468,-500.0,0.00016986,3]
[402290274,1768649468478,-500.0,0.00016986,3]
[402290275,1768649468487,-500.0,0.00016986,3]
[402290276,1768649468497,-500.0,0.00016986,3]
[402290277,1768649468507,-500.0,0.00016986,3]
[402290278,1768649468516,-1431.76,0.00016986,3]
[402290279,1768649468526,-8441.37,0.00016986,3]
[402290280,1768649468535,-500.0,0.00016986,3]
[402290281,1768649468545,-575.88539769,0.00016986,3]
[402290282,1768649468555,-500.0,0.00016986,3]
[402290283,1768649468564,-500.0,0.00016986,3]
[402290284,1768649468574,-953.59,0.00016986,3]
[402290285,1768649468583,-500.0,0.00016986,3]
[402290286,1768649468593,-500.0,0.00016986,3]
[402290287,1768649468602,-500.0,0.00016986,3]
[402290288,1768649468611,-1046.6,0.00016986,3]
[402290289,1768649468621,-2677.48,0.00016986,3]
[402290290,1768649468630,-500.0,0.00016986,3]
[402290291,1768649468640,-500.0,0.00016986,3]
[402290292,1768649468649,-500.0,0.00016986,3]
[402290293,1768649468658,-722.98,0.00016986,3]
[402290294,1768649468667,-523.8,0.00016986,3]
[402290295,1768649468678,-500.0,0.00016986,3]
[402290296,1768649468687,-500.0,0.00016986,3]
[402290297,1768649468696,-500.0,0.00016986,3]
[402290298,1768649468706,-1864.45,0.00016986,3]
[402290299,1768649468716,-980.47,0.00016986,3]
[402290300,1768649468726,-638.34,0.00016986,3]
[402290301,1768649468735,-500.0,0.00016986,3]
[402290302,1768649468745,-692.94,0.00016986,3]
[402290303,1768649468755,-500.0,0.00016986,3]
[402290304,1768649468765,-500.0,0.00016986,3]
[402290305,1768649468780,-500.0,0.00016986,3]
[402290306,1768649468790,-822.95,0.00016986,3]
[402290307,1768649468800,-500.0,0.00016986,3]
[402290308,1768649468812,-500.0,0.00016986,3]
[402290309,1768649468822,-1239.92,0.00016986,3]
[402290310,1768649468832,-500.0,0.00016986,3]
[402290311,1768649468842,-500.0,0.00016986,3]
[402290312,1768649468852,-500.0,0.00016986,3]
[402290313,1768649468862,-1628.03,0.00016986,3]
[402290314,1768649468871,-500.0,0.00016986,3]
[402290315,1768649468882,-604.11,0.00016986,3]
[402290316,1768649468892,-500.0,0.00016986,3]
[402290317,1768649468902,-772.16,0.00016986,3]
[402290318,1768649468912,-645.09,0.00016986,3]
[402290319,1768649468922,-500.0,0.00016986,3]
[402290320,1768649468932,-500.0,0.00016986,3]
[402290321,1768649468942,-2039.45,0.00016986,3]
[402290322,1768649468952,-500.0,0.00016986,3]
[402290323,1768649468963,-500.0,0.00016986,3]
[402290324,1768649468973,-500.0,0.00016986,3]
[402290325,1768649468982,-500.0,0.00016986,3]
[402290326,1768649468992,-500.0,0.00016986,3]
[402290327,1768649469003,-483.43506742,0.00016986,3]
[402290328,1768649469012,-782.18,0.00016986,3]
[402290329,1768649469022,-693.9,0.00016986,3]
[402290330,1768649469033,-500.0,0.00016986,3]
[402290331,1768649469043,-508.96,0.00016986,3]
[402290332,1768649469053,-875.55,0.00016986,3]
[402290333,1768649469063,-500.0,0.00016986,3]
[402290334,1768649469073,-500.0,0.00016986,3]
[402290335,1768649469083,-500.0,0.00016986,3]
[402290336,1768649469093,-500.0,0.00016986,3]
[402290337,1768649469103,-1112.08,0.00016986,3]
[402290338,1768649469113,-1075.34,0.00016986,3]
[402290339,1768649469124,-500.0,0.00016986,3]
[402290340,1768649469134,-1330.27,0.00016986,3]
[402290341,1768649469144,-500.0,0.00016986,3]
[402290342,1768649469155,-500.0,0.00016986,3]
[402290343,1768649469165,-500.0,0.00016986,3]
[402290344,1768649469176,-784.27,0.00016986,3]
[402290345,1768649469186,-500.0,0.00016986,3]
[402290346,1768649469197,-1439.17,0.00016986,3]
[402290347,1768649469206,-785.13,0.00016986,3]
[402290348,1768649469218,-502.25738328,0.00016986,3]
[402290349,1768649469228,-1777.27,0.00016986,3]
[402290350,1768649469238,-508.15,0.00016986,3]
[402290351,1768649469247,-578.09,0.00016986,3]
[402290352,1768649469258,-500.0,0.00016986,3]
[402290353,1768649469268,-500.0,0.00016986,3]
[402290354,1768649469278,-976.59,0.00016986,3]
[402290355,1768649469288,-500.0,0.00016986,3]
[402290356,1768649469299,-2433.28,0.00016986,3]
[402290357,1768649469309,-529.17846525,0.00016986,3]
[402290358,1768649469319,-500.0,0.00016986,3]
[402290359,1768649469328,-506.89,0.00016986,3]
[402290360,1768649469338,-564.35,0.00016986,3]
[402290361,1768649469348,-500.0,0.00016986,3]
[402290362,1768649469357,-519.78944521,0.00016986,3]
[402290363,1768649469367,-500.0,0.00016986,3]
[402290364,1768649469377,-659.07,0.00016986,3]
[402290365,1768649469387,-562.57,0.00016986,3]
[402290366,1768649469397,-500.0,0.00016986,3]
[402290367,1768649469408,-1186.93,0.00016986,3]
[402290368,1768649469418,-500.0,0.00016986,3]
[402290369,1768649469427,-500.0,0.00016986,3]
[402290370,1768649469438,-1786.2,0.00016986,3]
[402290371,1768649469448,-630.13520859,0.00016986,3]
[402290372,1768649469457,-500.0,0.00016986,3]
[402290373,1768649469467,-643.39,0.00016986,3]
[402290374,1768649469477,-639.49459092,0.00016986,3]
[402290375,1768649469487,-500.0,0.00016986,3]
[402290376,1768649469496,-612.1,0.00016986,3]
[402290377,1768649469506,-533.11445004,0.00016986,3]
[402290378,1768649469516,-1089.71,0.00016986,3]
[402290379,1768649469525,-500.0,0.00016986,3]
[402290380,1768649469535,-500.0,0.00016986,3]
[402290381,1768649469545,-998.12,0.00016986,3]
[402290382,1768649469554,-1659.97,0.00016986,3]
[402290383,1768649469564,-500.0,0.00016986,3]
[402290384,1768649469574,-1699.56,0.00016986,3]
[402290385,1768649469584,-974.97,0.00016986,3]
[402290386,1768649469593,-733.19,0.00016986,3]
[402290387,1768649469603,-500.0,0.00016986,3]
[402290388,1768649469613,-1287.57,0.00016986,3]
[402290389,1768649469623,-1613.1,0.00016986,3]
[402290390,1768649469632,-1429.84,0.00016986,3]
[402290391,1768649469642,-1106.34,0.00016986,3]
[402290392,1768649469652,-500.0,0.00016986,3]
[402290393,1768649469662,-500.0,0.00016986,3]
[402290394,1768649469671,-1141.58,0.00016986,3]
[402290395,1768649469681,-500.0,0.00016986,3]
[402290396,1768649469692,-500.0,0.00016986,3]
[402290397,1768649469701,-1806.23,0.00016986,3]
[402290398,1768649469710,-500.0,0.00016986,3]
[402290399,1768649469720,-972.38,0.00016986,3]
[402290400,1768649469729,-2006.9,0.00016986,3]
[402290401,1768649469739,-1072.76,0.00016986,3]
[402290402,1768649469749,-500.0,0.00016986,3]
[402290403,1768649469759,-500.0,0.00016986,3]
[402290404,1768649469769,-1530.01,0.00016986,3]
[402290405,1768649469782,-500.0,0.00016986,3]
[402290406,1768649469792,-999.91,0.00016986,3]
[402290407,1768649469802,-500.0,0.00016986,3]
[402290408,1768649469813,-500.0,0.00016986,3]
[402290409,1768649469822,-920.91,0.00016986,3]
[402290410,1768649469832,-500.0,0.00016986,3]
[402290411,1768649469842,-475.6932178,0.00016986,3]
[402290412,1768649469852,-500.0,0.00016986,3]
[402290413,1768649469862,-849.02,0.00016986,3]
[402290414,1768649469872,-500.0,0.00016986,3]
[402290415,1768649469882,-500.0,0.00016986,3]
[402290416,1768649469891,-500.0,0.00016986,3]
[402290417,1768649469901,-500.0,0.00016986,3]
[402290418,1768649469910,-500.0,0.00016986,3]
[402290419,1768649469920,-530.71,0.00016986,3]
[402290420,1768649469930,-500.0,0.00016986,3]
[402290421,1768649469939,-863.5,0.00016986,3]
[402290422,1768649469948,-1016.59,0.00016986,3]
[402290423,1768649469958,-570.88,0.00016986,3]
[402290424,1768649469968,-500.0,0.00016986,3]
[402290425,1768649469978,-500.0,0.00016986,3]
[402290426,1768649469987,-1506.77,0.00016986,3]
[402290427,1768649469997,-500.0,0.00016986,3]
[402290428,1768649470007,-1003.52,0.00016986,3]
[402290429,1768649470016,-500.0,0.00016986,3]
[402290430,1768649470025,-500.0,0.00016986,3]
[402290431,1768649470035,-2338.27,0.00016986,3]
[402290432,1768649470045,-974.74,0.00016986,3]
[402290433,1768649470055,-500.0,0.00016986,3]
[402290434,1768649470065,-500.0,0.00016986,3]
[402290435,1768649470075,-617.9,0.00016986,3]
[402290436,1768649470084,-500.0,0.00016986,3]
[402290437,1768649470094,-741.6,0.00016986,3]
[402290438,1768649470104,-565.41,0.00016986,3]
[402290439,1768649470113,-871.62,0.00016986,3]
[402290440,1768649470123,-2020.66,0.00016986,3]
[402290441,1768649470132,-1482.88,0.00016986,3]
[402290442,1768649470142,-939.95,0.00016986,3]
[402290443,1768649470151,-500.0,0.00016986,3]
[402290444,1768649470160,-500.0,0.00016986,3]
[402290445,1768649470170,-541.87987257,0.00016986,3]
[402290446,1768649470180,-500.0,0.00016986,3]
[402290447,1768649470189,-500.0,0.00016986,3]
[402290448,1768649470199,-680.35,0.00016986,3]
[402290449,1768649470208,-626.66664619,0.00016986,3]
[402290450,1768649470217,-500.0,0.00016986,2]
[402290451,1768649470226,-1254.59,0.00016986,3]
[402290452,1768649470236,-500.0,0.00016986,3]
[402290453,1768649470245,-500.0,0.00016986,3]
[402290454,1768649470255,-500.0,0.00016986,3]
[402290455,1768649470265,-500.0,0.00016986,3]
[402290456,1768649470275,-500.0,0.00016986,2]
[402290457,1768649470284,-500.0,0.00016986,2]
[402290458,1768649470295,-150.12056451,0.00016986,2]
[402290459,1768649470305,-2004.21199472,0.00016986,2]
[402290460,1768649470315,-252.4,0.00016992,2]
[402290461,1768649470325,-558.56952716,0.00016993,24]
[402290462,1768649470335,-412.13348321,0.00016993,24]
[402290463,1768649470345,-81764.19339649,0.0001701,3]
[402290464,1768649470355,-870.7310452,0.00017052,2]
[402290465,1768649470365,-438.69204698,0.00017134,2]
[402290466,1768649470374,-1220.0,0.00017154,2]
[402290467,1768649470384,-163.992004,0.00017154,7]
[402290468,1768649470393,-601.4293559,0.00017176,11]
[402290469,1768649470404,-1234.0,0.00017178,2]
[402290470,1768649470417,-508.0,0.00017178,2]
[402290471,1768649470427,-252.0,0.00017178,2]
[402290472,1768649470437,-207.27036298,0.00017199,2]
[402290473,1768649470447,-381.1856787,0.0001722,2]
[402290474,1768649470457,-500.0,0.0001726,3]
[402290475,1768649470467,-500.0,0.0001726,3]
[402290476,1768649470477,-500.0,0.0001726,3]
[402290477,1768649470486,-500.0,0.0001726,3]
[402290478,1768649470496,-500.0,0.0001726,3]
[402290479,1768649470505,-500.0,0.0001726,3]
[402290480,1768649470514,-500.0,0.0001726,3]
[402290481,1768649470523,-1541.12,0.0001726,3]
[402290482,1768649470532,-691.16,0.0001726,3]
[402290483,1768649470543,-500.0,0.0001726,3]
[402290484,1768649470552,-500.0,0.0001726,3]
[402290485,1768649470562,-500.0,0.0001726,3]
[402290486,1768649470572,-500.0,0.0001726,3]
[402290487,1768649470582,-500.0,0.0001726,3]
[402290488,1768649470592,-500.0,0.0001726,3]
[402290489,1768649470602,-500.0,0.0001726,3]
[402290490,1768649470611,-500.0,0.0001726,3]
[402290491,1768649470621,-500.0,0.0001726,3]
[402290492,1768649470631,-557.26,0.0001726,3]
[402290493,1768649470641,-904.31,0.0001726,3]
[402290494,1768649470651,-500.0,0.0001726,3]
[402290495,1768649470660,-500.0,0.0001726,3]
[402290496,1768649470670,-524.86,0.0001726,3]
[402290497,1768649470680,-500.0,0.0001726,3]
[402290498,1768649470690,-544.01,0.0001726,3]
[402290499,1768649470700,-784.71,0.0001726,3]
[402290500,1768649470709,-953.58,0.0001726,3]
[402290501,1768649470719,-510.56,0.0001726,3]
[402290502,1768649470728,-214.48714005,0.0001726,3]
[402290503,1768649470738,-1016.13,0.0001726,3]
[402290504,1768649470747,-500.0,0.0001726,3]
[402290505,1768649470757,-587.21,0.0001726,3]
[402290506,1768649470767,-500.0,0.0001726,3]
[402290507,1768649470782,-785.77,0.0001726,3]
[402290508,1768649470792,-500.0,0.0001726,3]
[402290509,1768649470802,-1289.75,0.0001726,3]
[402290510,1768649470811,-848.03,0.0001726,3]
[402290511,1768649470822,-500.0,0.0001726,3]
[402290512,1768649470833,-816.49,0.0001726,3]
[402290513,1768649470844,-1000.0,0.0001726,2]
[402290514,1768649470854,-500.0,0.0001726,3]
[402290515,1768649470863,-500.0,0.0001726,3]
[402290516,1768649470873,-500.0,0.0001726,3]
[402290517,1768649470884,-649.2,0.0001726,3]
[402290518,1768649470894,-500.0,0.0001726,3]
[402290519,1768649470905,-500.0,0.0001726,3]
[402290520,1768649470917,-500.0,0.0001726,3]
[402290521,1768649470927,-595.44134723,0.0001726,3]
[402290522,1768649471145,-500.0,0.0001726,3]
[402290523,1768649471155,-231.71584647,0.0001726,3]
[402290524,1768649471164,-667.06,0.0001726,3]
[402290525,1768649471174,-500.0,0.0001726,3]
[402290526,1768649471183,-500.0,0.0001726,3]
[402290527,1768649471193,-304.89462711,0.0001726,3]
[402290528,1768649471203,-1441.58,0.0001726,3]
[402290529,1768649471212,-500.0,0.0001726,3]
[402290530,1768649471222,-513.41,0.0001726,3]
[402290531,1768649471231,-500.0,0.0001726,3]
[402290532,1768649471240,-1507.14,0.0001726,3]
[402290533,1768649471249,-500.0,0.0001726,3]
[402290534,1768649471259,-500.0,0.0001726,3]
[402290535,1768649471268,-500.0,0.0001726,3]
[402290536,1768649471278,-500.0,0.0001726,3]
[402290537,1768649471287,-1074.96,0.0001726,3]
[402290538,1768649471297,-790.89,0.0001726,3]
[402290539,1768649471306,-500.0,0.0001726,3]
[402290540,1768649471316,-875.03,0.0001726,3]
[402290541,1768649471325,-500.0,0.0001726,3]
[402290542,1768649471336,-681.74,0.0001726,3]
[402290543,1768649471347,-713.54,0.0001726,3]
[402290544,1768649471356,-500.0,0.0001726,3]
[402290545,1768649471366,-740.56,0.0001726,3]
[402290546,1768649471375,-512.63,0.0001726,3]
[402290547,1768649471385,-877.22,0.0001726,3]
[402290548,1768649471394,-500.0,0.0001726,3]
[402290549,1768649471403,-1834.58,0.0001726,3]
[402290550,1768649471413,-500.0,0.0001726,3]
[402290551,1768649471423,-297.32226087,0.0001726,3]
[402290552,1768649471432,-500.0,0.0001726,3]
[402290553,1768649471442,-500.0,0.0001726,3]
[402290554,1768649471452,-500.0,0.0001726,3]
[402290555,1768649471461,-500.0,0.0001726,3]
[402290556,1768649471471,-1262.64,0.0001726,3]
[402290557,1768649471481,-500.0,0.0001726,3]
[402290558,1768649471490,-500.0,0.0001726,3]
[402290559,1768649471499,-546.26361381,0.0001726,3]
[402290560,1768649471508,-814.83,0.0001726,3]
[402290561,1768649471517,-500.0,0.0001726,3]
[402290562,1768649471526,-500.0,0.0001726,3]
[402290563,1768649471535,-500.0,0.0001726,3]
[402290564,1768649471544,-500.0,0.0001726,3]
[402290565,1768649471553,-791.33,0.0001726,3]
[402290566,1768649471563,-500.0,0.0001726,3]
[402290567,1768649471572,-478.36647413,0.0001726,3]
[402290568,1768649471582,-584.24,0.0001726,3]
[402290569,1768649471592,-904.51,0.0001726,3]
[402290570,1768649471601,-297.49810477,0.0001726,3]
[402290571,1768649471611,-500.0,0.0001726,3]
[402290572,1768649471620,-543.64406781,0.0001726,3]
[402290573,1768649471629,-500.0,0.0001726,3]
[402290574,1768649471639,-995.62,0.0001726,3]
[402290575,1768649471648,-1454.21,0.0001726,3]
[402290576,1768649471658,-558.41,0.0001726,3]
[402290577,1768649471667,-464.64297087,0.0001726,3]
[402290578,1768649471676,-500.0,0.0001726,3]
[402290579,1768649471685,-500.0,0.0001726,3]
[402290580,1768649471694,-500.0,0.0001726,3]
[402290581,1768649471703,-350.65309334,0.0001726,3]
[402290582,1768649471713,-500.0,0.0001726,3]
[402290583,1768649471723,-500.0,0.0001726,2]
[402290584,1768649471734,-500.0,0.0001726,3]
[402290585,1768649471744,-300.40761524,0.0001726,3]
[402290586,1768649471753,-500.0,0.0001726,3]
[402290587,1768649471763,-500.0,0.0001726,3]
[402290588,1768649471773,-500.0,0.0001726,3]
[402290589,1768649471784,-500.0,0.0001726,3]
[402290590,1768649471794,-500.0,0.0001726,3]
[402290591,1768649471809,-564.03397583,0.0001726,3]
[402290592,1768649471829,-518.28,0.0001726,3]
[402290593,1768649471850,-500.0,0.0001726,3]
[402290594,1768649471870,-648.04,0.0001726,3]
[402290595,1768649471880,-1286.45,0.0001726,3]
[402290596,1768649471889,-1134.77,0.0001726,3]
[402290597,1768649471899,-500.0,0.0001726,3]
[402290598,1768649471909,-500.0,0.0001726,3]
[402290599,1768649471919,-500.0,0.0001726,3]
[402290600,1768649471929,-500.0,0.0001726,3]
[402290601,1768649471940,-500.0,0.0001726,3]
[402290602,1768649471953,-500.0,0.0001726,3]
[402290603,1768649471974,-500.0,0.0001726,3]
[402290604,1768649471991,-500.0,0.0001726,3]
[402290605,1768649472000,-500.0,0.0001726,3]
[402290606,1768649472011,-500.0,0.0001726,3]
[402290607,1768649472020,-1305.23,0.0001726,3]
[402290608,1768649472030,-500.0,0.0001726,3]
[402290609,1768649472039,-593.05,0.0001726,3]
[402290610,1768649472049,-500.0,0.0001726,3]
[402290611,1768649472060,-895.32,0.0001726,3]
[402290612,1768649472070,-556.6,0.0001726,3]
[402290613,1768649472079,-500.0,0.0001726,3]
[402290614,1768649472088,-500.0,0.0001726,3]
[402290615,1768649472098,-592.12,0.0001726,3]
[402290616,1768649472108,-1170.72,0.0001726,3]
[402290617,1768649472119,-500.0,0.0001726,3]
[402290618,1768649472128,-500.0,0.0001726,3]
[402290619,1768649472139,-500.0,0.0001726,3]
[402290620,1768649472148,-500.0,0.0001726,3]
[402290621,1768649472159,-500.0,0.0001726,3]
[402290622,1768649472168,-500.0,0.0001726,3]
[402290623,1768649472178,-501.58,0.0001726,3]
[402290624,1768649472189,-797.95,0.0001726,3]
[402290625,1768649472200,-902.93,0.0001726,3]
[402290626,1768649472211,-1478.48,0.0001726,3]
[402290627,1768649472221,-931.1,0.0001726,3]
[402290628,1768649472232,-500.0,0.0001726,2]
[402290629,1768649472242,-500.0,0.0001726,3]
[402290630,1768649472252,-500.0,0.0001726,3]
[402290631,1768649472262,-500.0,0.0001726,3]
[402290632,1768649472273,-500.0,0.0001726,3]
[402290633,1768649472284,-500.0,0.0001726,3]
[402290634,1768649472293,-500.0,0.0001726,3]
[402290635,1768649472302,-500.0,0.0001726,3]
[402290636,1768649472311,-887.98,0.0001726,3]
[402290637,1768649472321,-500.0,0.0001726,3]